bitfinex/quotes_SOLUSD_20230105
["timestamp","ask_amount","ask_price","bid_price","bid_amount"]
[1672928778916,17.0,13.194,13.184,37.0]
[1672928779109,37.0,13.194,13.184,37.0]
[1672928779329,17.0,13.194,13.184,37.0]
[1672928779978,56.88,13.197,13.184,37.0]
[1672928780598,76.88,13.197,13.184,37.0]
[1672928782059,37.0,13.194,13.184,37.0]
[1672928782276,17.0,13.194,13.184,37.0]
[1672928782916,76.88,13.197,13.184,37.0]
[1672928783302,20.0,13.196,13.184,37.0]
[1672928783517,172.3423,13.195,13.184,37.0]
[1672928783852,115.4623,13.195,13.184,37.0]
[1672928784671,115.4623,13.195,13.185,20.0]
[1672928784890,115.4623,13.195,13.186,37.0]
[1672928785090,115.4623,13.195,13.187,20.0]
[1672928785308,115.4623,13.195,13.188,17.0]
[1672928785524,116.2375,13.198,13.188,17.0]
[1672928788045,116.2375,13.198,13.187,17.0]
[1672928788583,56.85,13.203,13.19,6.55]
[1672928788775,56.84,13.206,13.192,20.0]
[1672928788987,173.3313,13.206,13.193,20.0]
[1672928789520,20.0,13.205,13.193,20.0]
[1672928789745,20.0,13.203,13.193,20.0]
[1672928790182,56.85,13.204,13.193,20.0]
[1672928790381,56.84,13.205,13.194,17.0]
[1672928790576,56.84,13.205,13.195,20.0]
[1672928796883,17.0,13.204,13.195,20.0]
[1672928797099,37.0,13.204,13.193,20.0]
[1672928798137,56.85,13.203,13.193,20.0]
[1672928798788,56.85,13.203,13.194,17.0]
[1672928798981,116.4913,13.206,13.196,20.0]
[1672928799323,56.84,13.205,13.196,20.0]
[1672928800134,116.4913,13.206,13.196,20.0]
[1672928800782,116.4913,13.206,13.195,20.0]
[1672928801002,116.4913,13.206,13.196,17.0]
[1672928801217,56.84,13.205,13.196,17.0]
[1672928803105,116.4913,13.206,13.196,17.0]
[1672928810668,116.4913,13.206,13.196,39.41737149]
[1672928810890,116.4913,13.206,13.197,20.0]
[1672928811100,116.4913,13.206,13.199,20.0]
[1672928812040,116.4913,13.206,13.196,39.41737149]
[1672928812260,56.84,13.205,13.196,17.0]
[1672928812669,56.84,13.205,13.195,134.4653]
[1672928818982,56.84,13.205,13.195,20.0]
[1672928819194,20.0,13.203,13.192,20.0]
[1672928819403,6.47,13.2,13.188,59.7745]
[1672928819744,6.47,13.2,13.186,35.88]
[1672928819939,17.0,13.199,13.186,35.88]
[1672928820772,17.0,13.199,13.185,35.88]
[1672928821095,20.0,13.197,13.185,35.88]
[1672928821944,20.0,13.197,13.186,37.0]
[1672928823426,20.0,13.198,13.186,37.0]
[1672928824146,73.87,13.199,13.186,37.0]
[1672928825914,56.87,13.199,13.186,37.0]
[1672928826123,6.58,13.2,13.187,42.41737149]
[1672928826350,6.58,13.2,13.189,20.0]
[1672928826556,6.58,13.2,13.19,17.0]
[1672928828231,115.6148,13.202,13.19,17.0]
[1672928828440,56.84,13.206,13.191,93.7]
[1672928828651,56.84,13.206,13.192,17.0]
[1672928828862,56.83,13.208,13.193,20.0]
[1672928829176,56.83,13.208,13.195,20.0]
[1672928829397,56.83,13.208,13.196,37.0]
[1672928829631,56.83,13.208,13.197,20.0]
[1672928829806,56.83,13.208,13.198,17.0]
[1672928830218,56.83,13.208,13.197,17.0]
[1672928831506,17.0,13.206,13.196,20.0]
[1672928831722,73.84,13.206,13.196,20.0]
[1672928831913,17.0,13.206,13.196,20.0]
[1672928832128,17.0,13.206,13.195,20.0]
[1672928832434,17.0,13.206,13.196,17.0]
[1672928835609,56.83,13.208,13.196,17.0]
[1672928836142,109.6727,13.209,13.196,17.0]
[1672928836355,166.4927,13.209,13.196,17.0]
[1672928836545,166.4927,13.209,13.197,20.0]
[1672928836756,166.4927,13.209,13.198,17.0]
[1672928837699,109.6727,13.209,13.198,17.0]
[1672928840855,166.4927,13.209,13.198,17.0]
[1672928841189,166.4927,13.209,13.197,17.0]
[1672928841374,17.0,13.208,13.197,17.0]
[1672928841589,76.83,13.207,13.196,17.0]
[1672928842014,20.0,13.206,13.196,17.0]
[1672928843058,56.83,13.207,13.196,17.0]
[1672928848641,20.0,13.207,13.196,17.0]
[1672928849593,56.83,13.208,13.196,17.0]
[1672928851712,56.83,13.208,13.195,20.0]
[1672928851910,76.83,13.208,13.194,20.0]
[1672928852221,76.83,13.208,13.196,20.0]
[1672928852455,76.83,13.208,13.194,20.0]
[1672928853053,76.83,13.208,13.195,17.0]
[1672928853264,56.83,13.208,13.197,20.0]
[1672928853493,56.83,13.208,13.198,17.0]
[1672928854650,56.83,13.208,13.194,20.0]
[1672928854863,20.0,13.206,13.194,20.0]
[1672928855060,56.84,13.205,13.194,20.0]
[1672928855687,56.84,13.206,13.194,20.0]
[1672928856001,56.84,13.206,13.195,17.0]
[1672928856217,56.83,13.207,13.197,20.0]
[1672928856430,56.83,13.207,13.198,17.0]
[1672928857801,20.0,13.206,13.198,17.0]
[1672928859479,56.83,13.207,13.198,17.0]
[1672928860439,56.83,13.207,13.194,20.0]
[1672928860648,56.83,13.207,13.195,17.0]
[1672928860860,56.83,13.207,13.196,20.0]
[1672928861051,56.83,13.207,13.197,17.0]
[1672928865690,76.83,13.208,13.197,17.0]
[1672928866006,76.83,13.208,13.197,16.93401587]
[1672928866193,20.0,13.207,13.197,16.93401587]
[1672928866404,56.84,13.206,13.197,16.93401587]
[1672928868928,20.0,13.206,13.197,16.93401587]
[1672928870712,20.0,13.206,13.196,20.0]
[1672928870922,20.0,13.206,13.193,20.0]
[1672928871129,20.0,13.204,13.192,20.0]
[1672928871462,20.0,13.202,13.192,20.0]
[1672928872614,56.85,13.203,13.192,20.0]
[1672928873575,56.85,13.203,13.193,17.0]
[1672928873786,56.85,13.203,13.194,20.0]
[1672928875135,56.85,13.204,13.194,20.0]
[1672928876518,56.85,13.204,13.195,17.0]
[1672928877129,56.85,13.204,13.196,20.0]
[1672928879252,20.0,13.212,13.196,20.0]
[1672928879253,20.0,13.206,13.196,20.0]
[1672928879444,56.84,13.205,13.196,20.0]
[1672928883352,56.84,13.206,13.197,17.0]
[1672928883538,20.0,13.206,13.197,17.0]
[1672928883752,56.84,13.205,13.197,17.0]
[1672928883960,20.0,13.206,13.197,17.0]
[1672928885125,56.83,13.207,13.197,17.0]
[1672928885333,20.0,13.207,13.197,17.0]
[1672928885981,56.84,13.206,13.197,17.0]
[1672928886190,76.83,13.207,13.197,17.0]
[1672928887135,56.83,13.207,13.197,17.0]
[1672928888808,20.0,13.207,13.197,17.0]
[1672928889131,56.83,13.208,13.197,17.0]
[1672928893027,282.0313,13.209,13.197,17.0]
[1672928893758,20.0,13.208,13.197,17.0]
[1672928894061,282.0313,13.209,13.197,17.0]
[1672928901335,282.0313,13.209,13.196,20.0]
[1672928901545,20.0,13.208,13.196,20.0]
[1672928901743,56.83,13.207,13.196,20.0]
[1672928901955,20.0,13.206,13.196,20.0]
[1672928903011,20.0,13.206,13.197,17.0]
[1672928904385,56.83,13.207,13.197,17.0]
[1672928917334,56.83,13.208,13.197,17.0]
[1672928918676,282.0313,13.209,13.197,17.0]
[1672928929530,20.0,13.208,13.197,17.0]
[1672928929740,56.83,13.207,13.197,17.0]
[1672928930050,20.0,13.206,13.197,17.0]
[1672928930371,76.83,13.208,13.197,17.0]
[1672928936044,37.0,13.207,13.196,20.0]
[1672928936355,20.0,13.205,13.189,20.0]
[1672928936569,6.47,13.2,13.189,20.0]
[1672928936970,20.0,13.198,13.189,20.0]
[1672928938016,20.0,13.198,13.19,17.0]
[1672928938226,20.0,13.198,13.191,20.0]
[1672928943277,63.33,13.2,13.191,20.0]
[1672928943502,6.47,13.2,13.191,20.0]
[1672928960229,56.85,13.203,13.191,20.0]
[1672928960452,56.83,13.208,13.192,17.0]
[1672928960669,20.0,13.207,13.193,59.55]
[1672928960871,56.84,13.206,13.194,20.0]
[1672928961089,20.0,13.207,13.194,37.0]
[1672928963274,20.0,13.205,13.194,37.0]
[1672928964869,56.84,13.206,13.194,37.0]
[1672928967614,20.0,13.207,13.194,37.0]
[1672928968017,42.41737149,13.207,13.194,37.0]
[1672928968871,20.0,13.205,13.194,37.0]
[1672928970346,99.24737149,13.207,13.194,37.0]
[1672928970847,42.41737149,13.207,13.194,37.0]
[1672928971690,20.0,13.205,13.194,37.0]
[1672928972768,99.24737149,13.207,13.194,37.0]
[1672928974215,79.24737149,13.207,13.194,37.0]
[1672928974762,56.83,13.207,13.194,37.0]
[1672928975000,56.83,13.208,13.194,37.0]
[1672928975298,20.0,13.207,13.196,19.0]
[1672928975613,56.84,13.206,13.197,17.0]
[1672928975826,56.84,13.206,13.196,17.0]
[1672928980535,56.83,13.208,13.196,17.0]
[1672928980752,76.83,13.208,13.196,17.0]
[1672928981301,56.83,13.208,13.196,17.0]
[1672928982022,20.0,13.207,13.196,17.0]
[1672928982224,56.84,13.206,13.196,17.0]
[1672928984018,56.83,13.207,13.196,17.0]
[1672928986643,56.83,13.208,13.197,20.0]
[1672928986857,6.5,13.21,13.198,37.0]
[1672928987050,6.5,13.21,13.199,20.0]
[1672928987383,6.5,13.21,13.201,20.0]
[1672928987594,6.5,13.21,13.202,37.0]
[1672928988523,6.5,13.21,13.196,120.56389961]
[1672928988725,32.62,13.21,13.196,20.0]
[1672928988935,73.82,13.209,13.198,17.0]
[1672928989151,20.0,13.208,13.198,17.0]
[1672928989591,20.0,13.208,13.197,17.0]
[1672928991273,20.0,13.206,13.197,17.0]
[1672928992326,76.83,13.208,13.197,17.0]
[1672928993278,56.83,13.208,13.197,17.0]
[1672928993485,166.845,13.209,13.197,17.0]
[1672928994004,166.845,13.209,13.197,39.41737149]
[1672928994218,110.025,13.209,13.198,20.0]
[1672928994406,110.025,13.209,13.199,17.0]
[1672928995055,110.025,13.209,13.198,17.0]
[1672928995774,56.83,13.208,13.198,17.0]
[1672928995986,20.0,13.207,13.198,17.0]
[1672928996945,56.83,13.208,13.198,17.0]
[1672928998511,166.845,13.209,13.198,22.41737149]
[1672928998731,166.845,13.209,13.199,17.0]
[1672928999473,110.025,13.209,13.199,17.0]
[1672929000440,20.0,13.207,13.198,22.41737149]
[1672929000642,20.0,13.207,13.195,110.2343]
[1672929000854,20.0,13.207,13.196,20.0]
[1672929001495,20.0,13.205,13.196,20.0]
[1672929001681,56.85,13.204,13.196,20.0]
[1672929001891,76.84,13.205,13.196,20.0]
[1672929002627,56.84,13.205,13.196,20.0]
[1672929003056,56.84,13.205,13.197,17.0]
[1672929004128,56.84,13.206,13.198,20.0]
[1672929004313,117.1752,13.208,13.199,17.0]
[1672929005146,117.1752,13.208,13.198,17.0]
[1672929005358,166.845,13.209,13.198,17.0]
[1672929005584,110.025,13.209,13.198,39.41737149]
[1672929005801,6.5,13.21,13.199,20.0]
[1672929006020,6.5,13.21,13.201,20.0]
[1672929006539,6.5,13.21,13.202,37.0]
[1672929006954,6.5,13.21,13.198,79.28737149]
[1672929007152,6.5,13.21,13.199,17.0]
[1672929007352,6.5,13.21,13.198,17.0]
[1672929007568,56.81,13.212,13.198,17.0]
[1672929007782,79.21737149,13.215,13.199,20.0]
[1672929008098,20.0,13.213,13.2,17.0]
[1672929008307,56.81,13.212,13.2,17.0]
[1672929008954,56.81,13.212,13.201,20.0]
[1672929009275,56.81,13.212,13.202,17.0]
[1672929009458,56.8,13.214,13.203,20.0]
[1672929009670,56.8,13.214,13.204,17.0]
[1672929009884,56.8,13.214,13.205,20.0]
[1672929010731,56.8,13.215,13.206,17.0]
[1672929012326,56.8,13.215,13.205,20.0]
[1672929012516,79.21737149,13.215,13.203,20.0]
[1672929012943,174.3868,13.216,13.203,20.0]
[1672929013163,174.3868,13.216,13.204,22.41737149]
[1672929013373,117.5968,13.216,13.205,20.0]
[1672929013691,55.8,13.215,13.205,20.0]
[1672929013884,20.0,13.214,13.206,17.0]
[1672929014096,20.0,13.214,13.2,51.21080047]
[1672929014314,20.0,13.214,13.191,56.9]
[1672929014315,6.48,13.21,13.191,56.9]
[1672929014519,6.48,13.21,13.199,22.41737149]
[1672929014731,115.2691,13.209,13.199,22.41737149]
[1672929016736,115.2691,13.209,13.2,17.0]
[1672929017071,115.2691,13.209,13.199,22.41737149]
[1672929017274,115.2691,13.209,13.195,124.53450047]
[1672929017460,172.0891,13.209,13.196,20.0]
[1672929017668,56.82,13.209,13.196,20.0]
[1672929017885,139.19263475,13.233,13.198,20.0]
[1672929017886,56.8,13.214,13.198,20.0]
[1672929018086,56.8,13.215,13.2,6.52]
[1672929018299,56.8,13.215,13.202,20.0]
[1672929018515,56.8,13.215,13.203,37.0]
[1672929018926,20.0,13.214,13.204,22.41737149]
[1672929019139,20.0,13.214,13.205,37.0]
[1672929019559,76.81,13.213,13.2,56.86]
[1672929019774,6.53,13.21,13.201,22.41737149]
[1672929021156,26.53,13.21,13.201,22.41737149]
[1672929021348,26.53,13.21,13.195,240.63420047]
[1672929021561,116.3263,13.209,13.197,22.41737149]
[1672929021993,20.0,13.208,13.196,20.0]
[1672929022188,20.0,13.208,13.196,40.0]
[1672929022404,173.1463,13.209,13.196,40.0]
[1672929022616,173.1463,13.209,13.196,20.0]
[1672929022828,20.0,13.208,13.196,20.0]
[1672929023369,20.0,13.208,13.197,17.0]
[1672929023571,139.2983,13.208,13.196,37.0]
[1672929023792,119.2983,13.208,13.198,22.41737149]
[1672929024107,119.2983,13.208,13.199,17.0]
[1672929024636,119.2983,13.208,13.199,39.41737149]
[1672929026000,116.3263,13.209,13.199,39.41737149]
[1672929027784,6.53,13.21,13.199,39.41737149]
[1672929027981,56.8,13.215,13.2,20.0]
[1672929028192,56.8,13.215,13.202,20.0]
[1672929028519,56.8,13.215,13.203,37.0]
[1672929028732,56.8,13.215,13.203,59.41737149]
[1672929029561,20.0,13.214,13.203,59.41737149]
[1672929029778,56.81,13.213,13.203,59.41737149]
[1672929029997,20.0,13.214,13.204,22.41737149]
[1672929030316,20.0,13.214,13.205,37.0]
[1672929030934,56.8,13.215,13.205,37.0]
[1672929031561,76.8,13.215,13.205,37.0]
[1672929031883,20.0,13.214,13.205,37.0]
[1672929032201,20.0,13.214,13.205,20.0]
[1672929032413,56.81,13.213,13.205,20.0]
[1672929032627,56.81,13.213,13.203,20.0]
[1672929033038,56.8,13.214,13.203,20.0]
[1672929033244,117.5968,13.216,13.203,42.41737149]
[1672929033245,56.8,13.215,13.203,42.41737149]
[1672929033556,56.8,13.215,13.204,37.0]
[1672929033772,56.8,13.215,13.205,20.0]
[1672929033982,56.8,13.215,13.206,17.0]
[1672929034316,117.5968,13.216,13.206,17.0]
[1672929034836,76.8,13.215,13.206,17.0]
[1672929035773,76.8,13.215,13.205,20.0]
[1672929036095,76.8,13.215,13.203,20.0]
[1672929036277,76.8,13.215,13.202,226.2132]
[1672929036278,6.51,13.21,13.202,226.2132]
[1672929036488,6.51,13.21,13.198,56.87]
[1672929036724,20.0,13.208,13.197,22.41737149]
[1672929036936,20.0,13.208,13.199,22.41737149]
[1672929037872,20.0,13.208,13.2,17.0]
[1672929038296,119.9235,13.209,13.2,17.0]
[1672929039441,20.0,13.208,13.2,17.0]
[1672929039661,20.0,13.208,13.199,17.0]
[1672929040408,20.0,13.208,13.199,39.41737149]
[1672929043023,20.0,13.208,13.199,17.0]
[1672929044283,20.0,13.208,13.196,109.7105]
[1672929044496,20.0,13.208,13.197,17.0]
[1672929044700,20.0,13.208,13.197,22.41737149]
[1672929045328,73.83,13.207,13.195,73.3237]
[1672929045553,20.0,13.206,13.195,73.3237]
[1672929046606,20.0,13.204,13.195,73.3237]
[1672929047454,56.84,13.205,13.195,73.3237]
[1672929047641,20.0,13.207,13.195,73.3237]
[1672929047853,112.0616,13.208,13.196,17.0]
[1672929048683,112.0616,13.208,13.196,70.69]
[1672929049326,112.0616,13.208,13.197,20.0]
[1672929049678,112.0616,13.208,13.198,17.0]
[1672929050084,6.49,13.21,13.198,17.0]
[1672929050085,6.49,13.21,13.199,20.0]
[1672929050388,56.81,13.213,13.201,20.0]
[1672929050597,20.0,13.213,13.202,37.0]
[1672929052367,56.8,13.214,13.202,37.0]
[1672929052581,56.8,13.215,13.202,37.0]
[1672929052787,117.5968,13.216,13.202,37.0]
[1672929053544,117.5968,13.216,13.203,20.0]
[1672929054071,117.5968,13.216,13.204,37.0]
[1672929056295,56.8,13.215,13.204,20.0]
[1672929056519,20.0,13.214,13.204,20.0]
[1672929057437,20.0,13.214,13.205,17.0]
[1672929057877,56.8,13.215,13.205,17.0]
[1672929058072,174.3868,13.216,13.205,17.0]
[1672929058285,20.0,13.215,13.205,17.0]
[1672929058504,56.8,13.214,13.205,17.0]
[1672929058698,76.8,13.215,13.205,17.0]
[1672929059768,56.8,13.215,13.205,17.0]
[1672929060500,117.5968,13.216,13.205,17.0]
[1672929062609,76.8,13.215,13.204,20.0]
[1672929063227,76.8,13.215,13.196,56.88]
[1672929063228,6.51,13.21,13.196,56.88]
[1672929063559,6.51,13.21,13.19,6.53]
[1672929063560,20.0,13.208,13.193,109.8938]
[1672929063744,56.83,13.207,13.193,109.8938]
[1672929064196,20.0,13.206,13.193,109.8938]
[1672929064691,56.83,13.207,13.193,109.8938]
[1672929064908,20.0,13.207,13.196,17.0]
[1672929065316,56.83,13.208,13.196,17.0]
[1672929065542,56.83,13.208,13.197,20.0]
[1672929065757,224.4262,13.209,13.198,17.0]
[1672929066275,281.2462,13.209,13.198,17.0]
[1672929066685,224.4262,13.209,13.197,17.0]
[1672929066915,115.9315,13.209,13.197,17.0]
[1672929067106,6.51,13.21,13.197,17.0]
[1672929067322,56.81,13.212,13.197,17.0]
[1672929067967,56.81,13.212,13.198,20.0]
[1672929068179,56.8,13.215,13.199,73.87]
[1672929068392,56.8,13.215,13.201,20.0]
[1672929068591,56.8,13.215,13.202,154.6005]
[1672929068802,22.41737149,13.219,13.202,233.76210331]
[1672929068803,56.78,13.219,13.202,233.76210331]
[1672929069020,56.78,13.219,13.203,56.85]
[1672929069228,20.0,13.218,13.204,37.0]
[1672929069435,56.79,13.217,13.204,93.21709914]
[1672929069644,20.0,13.218,13.204,93.21709914]
[1672929070417,20.0,13.218,13.204,206.05169914]
[1672929070799,20.0,13.218,13.204,228.99620331]
[1672929071011,20.0,13.218,13.205,56.21709914]
[1672929071236,20.0,13.216,13.206,37.0]
[1672929071867,76.79,13.218,13.207,22.41737149]
[1672929072069,20.0,13.218,13.208,17.0]
[1672929072397,76.78,13.219,13.206,37.0]
[1672929072709,56.78,13.219,13.207,155.37870245]
[1672929072921,6.49,13.22,13.208,17.0]
[1672929073234,56.78,13.219,13.208,56.21709914]
[1672929073440,56.78,13.219,13.207,20.0]
[1672929073656,6.49,13.22,13.207,20.0]
[1672929073657,63.27,13.22,13.207,20.0]
[1672929074188,6.49,13.22,13.207,20.0]
[1672929074708,6.49,13.22,13.208,17.0]
[1672929075118,115.3764,13.23,13.211,20.0]
[1672929075328,229.5951,13.23,13.212,208.4933]
[1672929075528,20.0,13.229,13.213,20.0]
[1672929075739,56.74,13.228,13.214,73.8]
[1672929075963,20.0,13.227,13.215,20.0]
[1672929076177,20.0,13.227,13.216,17.0]
[1672929076578,56.74,13.228,13.216,78.53934071]
[1672929076791,76.74,13.229,13.217,69.03062096]
[1672929077021,76.74,13.229,13.218,17.0]
[1672929077445,76.74,13.229,13.215,20.0]
[1672929077970,17.0,13.228,13.215,20.0]
[1672929078589,56.75,13.227,13.215,20.0]
[1672929078805,20.0,13.226,13.213,20.0]
[1672929079005,56.76,13.225,13.214,17.0]
[1672929079203,20.0,13.226,13.215,20.0]
[1672929079414,20.0,13.226,13.216,17.0]
[1672929080679,56.75,13.227,13.216,17.0]
[1672929080889,17.0,13.228,13.216,86.03062096]
[1672929081093,56.75,13.227,13.216,86.03062096]
[1672929081305,229.5651,13.23,13.217,81.53934071]
[1672929081306,20.0,13.228,13.217,81.53934071]
[1672929081511,56.74,13.229,13.218,17.0]
[1672929083115,229.5651,13.23,13.218,17.0]
[1672929083324,56.74,13.229,13.218,17.0]
[1672929083725,229.5651,13.23,13.22,20.0]
[1672929083936,56.74,13.229,13.218,17.0]
[1672929084147,76.74,13.229,13.218,17.0]
[1672929084380,56.74,13.229,13.218,17.0]
[1672929084585,229.5651,13.23,13.218,39.41737149]
[1672929084899,229.5651,13.23,13.218,17.0]
[1672929085324,229.5651,13.23,13.217,17.0]
[1672929085730,56.74,13.229,13.217,17.0]
[1672929085941,20.0,13.228,13.217,17.0]
[1672929086161,20.0,13.228,13.216,17.0]
[1672929086905,20.0,13.228,13.215,20.0]
[1672929087303,20.0,13.228,13.214,20.0]
[1672929087984,20.0,13.228,13.215,17.0]
[1672929090574,20.0,13.228,13.214,20.0]
[1672929090791,20.0,13.226,13.214,20.0]
[1672929092255,20.0,13.226,13.215,17.0]
[1672929093627,20.0,13.226,13.214,20.0]
[1672929094032,20.0,13.226,13.213,20.0]
[1672929094777,20.0,13.224,13.213,20.0]
[1672929094977,20.0,13.224,13.214,17.0]
[1672929095401,6.48,13.22,13.206,56.84]
[1672929095624,6.48,13.22,13.206,112.4875]
[1672929095829,96.19737149,13.219,13.206,112.4875]
[1672929096150,20.0,13.218,13.206,112.4875]
[1672929096865,56.79,13.217,13.206,112.4875]
[1672929097091,20.0,13.216,13.207,17.0]
[1672929097513,133.9113,13.216,13.207,17.0]
[1672929099191,133.9113,13.216,13.202,132.2242]
[1672929099516,56.8,13.215,13.203,20.0]
[1672929099711,17.0,13.214,13.203,20.0]
[1672929099922,20.0,13.212,13.199,137.4743]
[1672929100559,6.51,13.21,13.199,137.4743]
[1672929100981,56.81,13.213,13.201,20.0]
[1672929101314,56.8,13.214,13.202,17.0]
[1672929101505,76.8,13.215,13.203,20.0]
[1672929101713,76.8,13.215,13.204,17.0]
[1672929102133,76.8,13.215,13.205,20.0]
[1672929102340,76.8,13.215,13.206,17.0]
[1672929102762,76.8,13.215,13.188,3.7832]
[1672929102969,6.53,13.21,13.197,56.88]
[1672929103181,113.2205,13.209,13.197,20.0]
[1672929103401,113.2205,13.209,13.196,79.29737149]
[1672929103724,227.174,13.209,13.196,79.29737149]
[1672929103910,20.0,13.208,13.196,79.29737149]
[1672929104117,20.0,13.208,13.196,56.88]
[1672929104332,20.0,13.208,13.193,20.0]
[1672929104572,20.0,13.208,13.194,56.89]
[1672929105098,20.0,13.208,13.193,56.89]
[1672929105279,20.0,13.208,13.196,17.0]
[1672929106015,20.0,13.208,13.197,56.88]
[1672929106220,20.0,13.208,13.198,17.0]
[1672929106449,20.0,13.208,13.192,56.9]
[1672929106662,73.83,13.207,13.193,20.0]
[1672929106875,96.24737149,13.207,13.193,20.0]
[1672929107189,6.53,13.2,13.193,20.0]
[1672929107400,6.53,13.2,13.191,116.3467]
[1672929107401,6.53,13.2,13.192,20.0]
[1672929108434,56.85,13.203,13.193,22.41737149]
[1672929108650,56.84,13.205,13.194,20.0]
[1672929108864,76.84,13.206,13.195,20.0]
[1672929109068,20.0,13.206,13.196,17.0]
[1672929110323,56.84,13.205,13.196,17.0]
[1672929110537,20.0,13.204,13.196,17.0]
[1672929111058,20.0,13.204,13.195,20.0]
[1672929111272,20.0,13.204,13.192,20.0]
[1672929112528,20.0,13.204,13.193,17.0]
[1672929112747,20.0,13.202,13.194,20.0]
[1672929113703,20.0,13.202,13.19,20.0]
[1672929114021,20.0,13.202,13.191,17.0]
[1672929114335,20.0,13.202,13.192,20.0]
[1672929114547,6.51,13.2,13.185,49.2]
[1672929114736,20.0,13.198,13.185,69.2]
[1672929114952,76.87,13.198,13.185,20.0]
[1672929115374,17.0,13.197,13.182,46.91]
[1672929115582,56.88,13.196,13.182,46.91]
[1672929115787,20.0,13.195,13.182,46.91]
[1672929116123,130.773,13.195,13.182,46.91]
[1672929116734,130.773,13.195,13.184,20.0]
[1672929117574,187.653,13.195,13.185,17.0]
[1672929117799,187.653,13.195,13.186,20.0]
[1672929118022,187.653,13.195,13.187,17.0]
[1672929118228,130.773,13.195,13.187,17.0]
[1672929119092,130.773,13.195,13.186,20.0]
[1672929119277,130.773,13.195,13.184,20.0]
[1672929119467,130.773,13.195,13.185,17.0]
[1672929119675,130.773,13.195,13.186,20.0]
[1672929120136,187.653,13.195,13.186,20.0]
[1672929121267,37.0,13.194,13.178,56.6]
[1672929121483,6.51,13.19,13.176,118.1588]
[1672929121671,20.0,13.188,13.176,118.1588]
[1672929122427,20.0,13.188,13.172,170.2288]
[1672929122627,20.0,13.188,13.172,118.1588]